[Event "*** Titled Tuesday Blitz"]
[Site "Chess.com"]
[Date "2019.06.04"]
[Round "3"]
[White "Sebastian"]
[Black "1g41-0"]
[Result "1-0"]
[WhiteElo "2880"]
[BlackElo "2503"]
[TimeControl "180+2"]
[EndTime "13:35:06 PDT"]
[Termination "Sebastian won by resignation"]

1. e4 {[%clk 0:03:01.9]} 1... c5 {[%clk 0:02:59.5]} 2. Nf3 {[%clk 0:03:02.8]}
2... d6 {[%clk 0:03:00.9]} 3. d4 {[%clk 0:03:04.4]} 3... cxd4 {[%clk 0:03:02.8]}
4. Nxd4 {[%clk 0:03:05.9]} 4... Nf6 {[%clk 0:03:04.4]} 5. Nc3 {[%clk 0:03:07.5]}
5... a6 {[%clk 0:03:05.9]} 6. Be3 {[%clk 0:03:08.6]} 6... e5 {[%clk 0:03:07.1]}
7. Nb3 {[%clk 0:03:09.6]} 7... Be7 {[%clk 0:03:08.4]} 8. Qd2 {[%clk 0:03:10.4]}
8... O-O {[%clk 0:03:01.4]} 9. f3 {[%clk 0:03:10.6]} 9... Be6 {[%clk 0:03:02.2]}
10. O-O-O {[%clk 0:03:10.1]} 10... a5 {[%clk 0:03:03.7]} 11. a4 {[%clk
0:03:09.7]} 11... Nc6 {[%clk 0:03:04.1]} 12. g4 {[%clk 0:03:10.4]} 12... Nb4
{[%clk 0:03:05]} 13. Kb1 {[%clk 0:03:06.6]} 13... Rc8 {[%clk 0:03:02.7]} 14. g5
{[%clk 0:03:04]} 14... Nh5 {[%clk 0:03:02.4]} 15. Rg1 {[%clk 0:03:01]} 15... g6
{[%clk 0:03:02.2]} 16. Bb5 {[%clk 0:03:01.1]} 16... d5 {[%clk 0:02:54.4]} 17.
exd5 {[%clk 0:02:49.3]} 17... Bf5 {[%clk 0:02:55.7]} 18. Na1 {[%clk 0:02:47.5]}
18... Bc5 {[%clk 0:02:19.6]} 19. d6 {[%clk 0:02:22.5]} 19... Nf4 {[%clk
0:01:55]} 20. Ne4 {[%clk 0:02:22.1]} 20... Bxe4 {[%clk 0:01:37.8]} 21. fxe4
{[%clk 0:02:22.6]} 21... Bxe3 {[%clk 0:01:38.7]} 22. Qxe3 {[%clk 0:02:23.5]}
22... Na6 {[%clk 0:01:23.5]} 23. Nb3 {[%clk 0:02:20.3]} 23... Ne6 {[%clk
0:01:16.3]} 24. c3 {[%clk 0:02:08.7]} 24... Nac5 {[%clk 0:01:13.3]} 25. Nxc5
{[%clk 0:02:09.9]} 25... Nxc5 {[%clk 0:01:15.2]} 26. d7 {[%clk 0:02:03.7]} 26...
Rc7 {[%clk 0:01:13.7]} 27. Rd5 {[%clk 0:01:47.7]} 27... Qe7 {[%clk 0:01:13]} 28.
Rgd1 {[%clk 0:01:42.2]} 28... Rd8 {[%clk 0:01:13.1]} 29. h4 {[%clk 0:01:37.1]}
29... b6 {[%clk 0:00:33.9]} 30. Qg3 {[%clk 0:01:36.6]} 30... Nxe4 {[%clk
0:00:21.9]} 31. Qxe5 {[%clk 0:01:27.6]} 31... Qxe5 {[%clk 0:00:12.5]} 32. Rxe5
{[%clk 0:01:28.6]} 1-0

[Event "*** Titled Tuesday Blitz"]
[Site "Chess.com"]
[Date "2019.06.04"]
[Round "3"]
[White "TonRicher"]
[Black "pedromartinez91"]
[Result "0-1"]
[WhiteElo "2354"]
[BlackElo "2420"]
[TimeControl "180+2"]
[EndTime "13:35:07 PDT"]
[Termination "pedromartinez91 won by resignation"]

1. d4 {[%clk 0:03:01.9]} 1... Nf6 {[%clk 0:02:56.9]} 2. c4 {[%clk 0:03:02.6]}
2... e6 {[%clk 0:02:57.5]} 3. Nf3 {[%clk 0:03:03.2]} 3... c5 {[%clk 0:02:57.7]}
4. d5 {[%clk 0:03:03.4]} 4... exd5 {[%clk 0:02:58.5]} 5. cxd5 {[%clk 0:03:05.3]}
5... Bd6 {[%clk 0:02:59.9]} 6. Nc3 {[%clk 0:03:03.4]} 6... O-O {[%clk
0:03:00.7]} 7. Nd2 {[%clk 0:03:03.7]} 7... Bc7 {[%clk 0:03:00.7]} 8. Nc4 {[%clk
0:03:03.4]} 8... d6 {[%clk 0:03:01.7]} 9. Bg5 {[%clk 0:02:57.1]} 9... Re8 {[%clk
0:03:00.8]} 10. e3 {[%clk 0:02:56]} 10... a6 {[%clk 0:03:01.9]} 11. a4 {[%clk
0:02:56.3]} 11... Bf5 {[%clk 0:03:02.7]} 12. Qf3 {[%clk 0:02:45.1]} 12... Bg6
{[%clk 0:03:00.6]} 13. Bxf6 {[%clk 0:02:43.8]} 13... Qxf6 {[%clk 0:02:59.6]} 14.
Qxf6 {[%clk 0:02:43]} 14... gxf6 {[%clk 0:03:01.5]} 15. Kd2 {[%clk 0:02:25.9]}
15... Nd7 {[%clk 0:03:02.5]} 16. f4 {[%clk 0:02:22.5]} 16... Nb6 {[%clk
0:02:57]} 17. a5 {[%clk 0:02:06]} 17... Nxc4+ {[%clk 0:02:56.1]} 18. Bxc4 {[%clk
0:02:07.9]} 18... Be4 {[%clk 0:02:54.4]} 19. Rhg1 {[%clk 0:02:05.9]} 19... f5
{[%clk 0:02:54.2]} 20. g4 {[%clk 0:01:43.5]} 20... fxg4 {[%clk 0:02:56.1]} 21.
Rxg4+ {[%clk 0:01:44.2]} 21... Kh8 {[%clk 0:02:57.5]} 22. Rg5 {[%clk 0:01:10.4]}
22... Bg6 {[%clk 0:02:55.7]} 23. h4 {[%clk 0:00:56.2]} 23... Bd8 {[%clk
0:02:56.5]} 24. Rgg1 {[%clk 0:00:50.4]} 24... Bxh4 {[%clk 0:02:56.2]} 25. Rgf1
{[%clk 0:00:50.1]} 25... Bf5 {[%clk 0:02:54]} 26. Rh1 {[%clk 0:00:43]} 26... Bf6
{[%clk 0:02:54.7]} 27. Bd3 {[%clk 0:00:38.1]} 27... Bxd3 {[%clk 0:02:39.6]} 28.
Kxd3 {[%clk 0:00:40]} 28... Rg8 {[%clk 0:02:35.3]} 29. Ne4 {[%clk 0:00:37.2]}
29... Be7 {[%clk 0:02:36.5]} 30. Rh2 {[%clk 0:00:33.4]} 30... f5 {[%clk
0:02:37.2]} 31. Nd2 {[%clk 0:00:26.5]} 31... Bd8 {[%clk 0:02:29.7]} 32. Nc4
{[%clk 0:00:26.4]} 32... Bc7 {[%clk 0:02:31]} 33. Rah1 {[%clk 0:00:26.9]} 33...
Rg7 {[%clk 0:02:31.7]} 34. Rh5 {[%clk 0:00:28]} 34... Rf8 {[%clk 0:02:32]} 35.
b3 {[%clk 0:00:28.8]} 35... Kg8 {[%clk 0:02:32.2]} 36. R1h2 {[%clk 0:00:29.8]}
36... Rf6 {[%clk 0:02:32.6]} 37. Rh1 {[%clk 0:00:25.4]} 37... Bd8 {[%clk
0:02:28]} 38. R1h2 {[%clk 0:00:24.1]} 38... Be7 {[%clk 0:02:29.2]} 39. Rh1
{[%clk 0:00:23.1]} 39... Bf8 {[%clk 0:02:29.9]} 40. R1h2 {[%clk 0:00:21.6]}
40... Rgf7 {[%clk 0:02:31.2]} 41. Rg5+ {[%clk 0:00:21.8]} 41... Rg6 {[%clk
0:02:32]} 42. Rgh5 {[%clk 0:00:22.5]} 42... h6 {[%clk 0:02:33.4]} 43. Nd2 {[%clk
0:00:21.7]} 43... Rg3 {[%clk 0:02:32.3]} 44. R2h3 {[%clk 0:00:22.1]} 44... Rxh3
{[%clk 0:02:33.2]} 45. Rxh3 {[%clk 0:00:24]} 45... Kh7 {[%clk 0:02:30.7]} 46.
Nf3 {[%clk 0:00:24.6]} 46... Be7 {[%clk 0:02:31.1]} 47. Rh5 {[%clk 0:00:25.2]}
47... Kg6 {[%clk 0:02:31.6]} 48. Rh3 {[%clk 0:00:26.8]} 48... Bd8 {[%clk
0:02:33]} 49. Rg3+ {[%clk 0:00:27.8]} 49... Kh7 {[%clk 0:02:34.4]} 50. Nh4
{[%clk 0:00:28.7]} 50... Bxh4 {[%clk 0:02:31.1]} 0-1

[Event "*** Titled Tuesday Blitz"]
[Site "Chess.com"]
[Date "2019.06.04"]
[Round "3"]
[White "xamax2000"]
[Black "FairChess_on_YouTube"]
[Result "1/2-1/2"]
[WhiteElo "2666"]
[BlackElo "3061"]
[TimeControl "180+2"]
[EndTime "13:35:18 PDT"]
[Termination "Game drawn by repetition"]

1. e4 {[%clk 0:03:01.9]} 1... c5 {[%clk 0:02:59.6]} 2. Nf3 {[%clk 0:02:59.1]}
2... e6 {[%clk 0:03:00.7]} 3. d4 {[%clk 0:02:59.8]} 3... cxd4 {[%clk 0:03:02.6]}
4. Nxd4 {[%clk 0:03:01.5]} 4... Nc6 {[%clk 0:03:03.6]} 5. Nc3 {[%clk 0:03:02.4]}
5... a6 {[%clk 0:03:04.4]} 6. Nxc6 {[%clk 0:02:59]} 6... bxc6 {[%clk 0:03:05.1]}
7. Bd3 {[%clk 0:03:00.3]} 7... d5 {[%clk 0:03:05.6]} 8. Qf3 {[%clk 0:02:59.9]}
8... Nf6 {[%clk 0:03:04.1]} 9. Qg3 {[%clk 0:03:01]} 9... Nh5 {[%clk 0:02:52.7]}
10. Qf3 {[%clk 0:03:01.9]} 10... Nf6 {[%clk 0:02:52.1]} 11. e5 {[%clk
0:02:53.1]} 11... Nd7 {[%clk 0:02:51.8]} 12. Qg3 {[%clk 0:02:54.1]} 12... Nc5
{[%clk 0:02:31.3]} 13. O-O {[%clk 0:02:53.5]} 13... Nxd3 {[%clk 0:02:29.2]} 14.
cxd3 {[%clk 0:02:55.4]} 14... c5 {[%clk 0:02:28.6]} 15. b3 {[%clk 0:02:42.8]}
15... Bb7 {[%clk 0:02:28.8]} 16. Bd2 {[%clk 0:02:38.5]} 16... h5 {[%clk
0:02:28.8]} 17. h3 {[%clk 0:02:36.1]} 17... h4 {[%clk 0:02:23.7]} 18. Qg4 {[%clk
0:02:37]} 18... g6 {[%clk 0:02:23]} 19. Bg5 {[%clk 0:02:34.7]} 19... Be7 {[%clk
0:02:23.2]} 20. Bxe7 {[%clk 0:02:29.3]} 20... Qxe7 {[%clk 0:02:25.1]} 21. Rac1
{[%clk 0:02:29.9]} 21... Rc8 {[%clk 0:02:20.5]} 22. Rc2 {[%clk 0:02:30.5]} 22...
Rh5 {[%clk 0:01:39.7]} 23. f4 {[%clk 0:02:30.7]} 23... Rf5 {[%clk 0:01:38.6]}
24. Rfc1 {[%clk 0:02:27.6]} 24... g5 {[%clk 0:01:34.2]} 25. Rf1 {[%clk
0:02:09.4]} 25... c4 {[%clk 0:01:26.6]} 26. bxc4 {[%clk 0:01:21.9]} 26... dxc4
{[%clk 0:01:27.4]} 27. d4 {[%clk 0:01:23.8]} 27... Rd8 {[%clk 0:01:21.2]} 28.
fxg5 {[%clk 0:01:04.8]} 28... Rxg5 {[%clk 0:01:08.8]} 29. Qf4 {[%clk 0:01:00.6]}
29... Rf5 {[%clk 0:01:03.5]} 30. Qg4 {[%clk 0:01:01.1]} 30... Rg5 {[%clk
0:00:53.1]} 31. Qf4 {[%clk 0:01:01.8]} 31... Rf5 {[%clk 0:00:40.8]} 32. Qg4
{[%clk 0:00:51.1]} 32... Rg5 {[%clk 0:00:36.1]} 1/2-1/2

[Event "*** Titled Tuesday Blitz"]
[Site "Chess.com"]
[Date "2019.06.04"]
[Round "3"]
[White "ENEASZ"]
[Black "TST2014"]
[Result "0-1"]
[WhiteElo "2509"]
[BlackElo "2559"]
[TimeControl "180+2"]
[EndTime "13:35:18 PDT"]
[Termination "TST2014 won by resignation"]

1. e4 {[%clk 0:03:01.9]} 1... c5 {[%clk 0:03:00.2]} 2. c3 {[%clk 0:03:02.7]}
2... Nf6 {[%clk 0:03:00.3]} 3. e5 {[%clk 0:03:00.7]} 3... Nd5 {[%clk 0:03:01.1]}
4. d4 {[%clk 0:03:02.6]} 4... cxd4 {[%clk 0:03:01.7]} 5. cxd4 {[%clk 0:03:04.5]}
5... Nc6 {[%clk 0:03:02.2]} 6. Bc4 {[%clk 0:02:59.4]} 6... Nb6 {[%clk
0:03:02.6]} 7. Bb3 {[%clk 0:03:00.2]} 7... d5 {[%clk 0:03:03]} 8. exd6 {[%clk
0:02:44.5]} 8... Qxd6 {[%clk 0:02:59.7]} 9. Nf3 {[%clk 0:02:45.4]} 9... Be6
{[%clk 0:03:00.1]} 10. O-O {[%clk 0:02:45.5]} 10... Bxb3 {[%clk 0:03:00.6]} 11.
Qxb3 {[%clk 0:02:47.4]} 11... e6 {[%clk 0:03:00.8]} 12. Nc3 {[%clk 0:02:46.6]}
12... Be7 {[%clk 0:03:01.6]} 13. Nb5 {[%clk 0:02:42.9]} 13... Qb8 {[%clk
0:02:55.9]} 14. Bg5 {[%clk 0:02:24.5]} 14... O-O {[%clk 0:02:52.5]} 15. Bxe7
{[%clk 0:02:18.4]} 15... Nxe7 {[%clk 0:02:53]} 16. Ne5 {[%clk 0:02:20.3]} 16...
Nf5 {[%clk 0:02:49.4]} 17. Rfd1 {[%clk 0:02:18.1]} 17... Nxd4 {[%clk 0:02:48.5]}
18. Rxd4 {[%clk 0:01:26.1]} 18... Qxe5 {[%clk 0:02:47.9]} 19. Rad1 {[%clk
0:01:28]} 19... Nd5 {[%clk 0:02:41.7]} 20. Nc3 {[%clk 0:01:23.3]} 20... Nf6
{[%clk 0:02:38.6]} 21. h3 {[%clk 0:01:22.8]} 21... b6 {[%clk 0:02:33.7]} 22. a4
{[%clk 0:01:10.2]} 22... Rac8 {[%clk 0:02:30.2]} 23. g3 {[%clk 0:00:45.9]} 23...
h6 {[%clk 0:02:29.8]} 24. Kg2 {[%clk 0:00:47.1]} 24... Qc5 {[%clk 0:02:24.2]}
25. Qb5 {[%clk 0:00:39.7]} 25... Qc6+ {[%clk 0:02:21.7]} 26. Kg1 {[%clk
0:00:39.9]} 26... Qc7 {[%clk 0:02:13.7]} 27. Qa6 {[%clk 0:00:36.9]} 27... Qe7
{[%clk 0:01:41.5]} 28. Nb5 {[%clk 0:00:32.3]} 28... Ra8 {[%clk 0:01:38.8]} 29.
a5 {[%clk 0:00:26.2]} 29... Nd5 {[%clk 0:01:38.9]} 30. Nc3 {[%clk 0:00:22.6]}
30... Nb4 {[%clk 0:01:30.5]} 31. Qb5 {[%clk 0:00:19.7]} 31... bxa5 {[%clk
0:01:31.6]} 32. Qxa5 {[%clk 0:00:19.8]} 32... Nc6 {[%clk 0:01:31.8]} 33. Rd7
{[%clk 0:00:05.2]} 33... Qxd7 {[%clk 0:01:31.4]} 0-1

[Event "*** Titled Tuesday Blitz"]
[Site "Chess.com"]
[Date "2019.06.04"]
[Round "3"]
[White "GMHess"]
[Black "Rish_97"]
[Result "1-0"]
[WhiteElo "2660"]
[BlackElo "2455"]
[TimeControl "180+2"]
[EndTime "13:35:23 PDT"]
[Termination "GMHess won by resignation"]

1. b3 {[%clk 0:03:01.9]} 1... e5 {[%clk 0:01:10.9]} 2. Bb2 {[%clk 0:03:03.8]}
2... Nc6 {[%clk 0:01:11.4]} 3. e3 {[%clk 0:03:05.7]} 3... Nf6 {[%clk 0:01:12.1]}
4. Bb5 {[%clk 0:03:07.3]} 4... Bd6 {[%clk 0:01:13.4]} 5. Ne2 {[%clk 0:03:08.7]}
5... O-O {[%clk 0:01:13.8]} 6. Ng3 {[%clk 0:03:09.9]} 6... Re8 {[%clk
0:01:14.4]} 7. O-O {[%clk 0:03:04.7]} 7... a6 {[%clk 0:01:15.6]} 8. Be2 {[%clk
0:02:59.4]} 8... Bf8 {[%clk 0:01:13.7]} 9. f4 {[%clk 0:02:54.8]} 9... d5 {[%clk
0:01:06.3]} 10. fxe5 {[%clk 0:02:54.2]} 10... Nxe5 {[%clk 0:01:08.2]} 11. Nf5
{[%clk 0:02:55.3]} 11... g6 {[%clk 0:01:08.1]} 12. Ng3 {[%clk 0:02:44.6]} 12...
Bg7 {[%clk 0:01:09.1]} 13. Nc3 {[%clk 0:02:46.4]} 13... h5 {[%clk 0:01:03.9]}
14. Na4 {[%clk 0:02:45.1]} 14... h4 {[%clk 0:01:01.6]} 15. Nh1 {[%clk
0:02:46.4]} 15... h3 {[%clk 0:01:02.3]} 16. g3 {[%clk 0:02:47]} 16... Ne4 {[%clk
0:00:59.9]} 17. Nf2 {[%clk 0:02:44.5]} 17... b6 {[%clk 0:00:54.4]} 18. c4 {[%clk
0:02:08.9]} 18... Nxf2 {[%clk 0:00:42.5]} 19. Rxf2 {[%clk 0:02:10.8]} 19... dxc4
{[%clk 0:00:43.8]} 20. bxc4 {[%clk 0:02:11.5]} 20... Bb7 {[%clk 0:00:44.8]} 21.
d4 {[%clk 0:01:58.4]} 21... Nd7 {[%clk 0:00:42.4]} 22. Bf3 {[%clk 0:01:59.3]}
22... Bxf3 {[%clk 0:00:41.3]} 23. Qxf3 {[%clk 0:02:01.2]} 23... Qe7 {[%clk
0:00:32.4]} 24. Nc3 {[%clk 0:01:42]} 24... Nf6 {[%clk 0:00:31.1]} 25. e4 {[%clk
0:01:40.9]} 25... Nxe4 {[%clk 0:00:17.2]} 26. Nxe4 {[%clk 0:01:41.3]} 26... Qxe4
{[%clk 0:00:19.1]} 27. Qxf7+ {[%clk 0:01:42.9]} 27... Kh7 {[%clk 0:00:20.5]} 28.
Qd7 {[%clk 0:01:13.1]} 28... Rf8 {[%clk 0:00:19.3]} 29. d5 {[%clk 0:01:07]}
29... Rg8 {[%clk 0:00:20.1]} 30. Qxh3+ {[%clk 0:01:07.1]} 30... Bh6 {[%clk
0:00:20.5]} 31. Rf7+ {[%clk 0:01:08.2]} 1-0

[Event "*** Titled Tuesday Blitz"]
[Site "Chess.com"]
[Date "2019.06.04"]
[Round "3"]
[White "m3alam"]
[Black "Thee-Chessboy"]
[Result "0-1"]
[WhiteElo "2352"]
[BlackElo "2426"]
[TimeControl "180+2"]
[EndTime "13:35:25 PDT"]
[Termination "Thee-Chessboy won by resignation"]

1. d4 {[%clk 0:03:01.9]} 1... Nf6 {[%clk 0:02:58.3]} 2. c4 {[%clk 0:02:59.5]}
2... g6 {[%clk 0:02:59.4]} 3. Nc3 {[%clk 0:02:52.1]} 3... Bg7 {[%clk 0:03:00.5]}
4. Nf3 {[%clk 0:02:28.6]} 4... O-O {[%clk 0:03:00.5]} 5. g3 {[%clk 0:02:25]}
5... c5 {[%clk 0:02:53.6]} 6. Bg2 {[%clk 0:02:26.9]} 6... d5 {[%clk 0:02:41.6]}
7. cxd5 {[%clk 0:02:24.1]} 7... Nxd5 {[%clk 0:02:41.2]} 8. O-O {[%clk
0:02:22.2]} 8... cxd4 {[%clk 0:02:39]} 9. Nxd4 {[%clk 0:02:20.9]} 9... Nxc3
{[%clk 0:02:37]} 10. bxc3 {[%clk 0:02:20.8]} 10... Nd7 {[%clk 0:02:16.5]} 11.
Ba3 {[%clk 0:02:14.4]} 11... Re8 {[%clk 0:02:13.5]} 12. Qb3 {[%clk 0:02:08.7]}
12... a6 {[%clk 0:02:02.9]} 13. Rfd1 {[%clk 0:02:02.6]} 13... Qc7 {[%clk
0:02:01.8]} 14. Rab1 {[%clk 0:01:56.6]} 14... Rb8 {[%clk 0:02:01.5]} 15. c4
{[%clk 0:01:45.5]} 15... Ne5 {[%clk 0:01:42.4]} 16. c5 {[%clk 0:01:44.1]} 16...
Bd7 {[%clk 0:01:37.4]} 17. Bxb7 {[%clk 0:01:39.3]} 17... Nc6 {[%clk 0:01:31.3]}
18. e3 {[%clk 0:01:12.8]} 18... e5 {[%clk 0:01:03.2]} 19. Nc2 {[%clk 0:01:05.4]}
19... Bc8 {[%clk 0:01:01.4]} 20. Bxc6 {[%clk 0:00:42.2]} 20... Rxb3 {[%clk
0:01:01]} 21. Bxe8 {[%clk 0:00:42.4]} 21... Rxb1 {[%clk 0:01:00.9]} 22. Rxb1
{[%clk 0:00:44.3]} 22... Bf5 {[%clk 0:00:54.6]} 23. Ba4 {[%clk 0:00:42.1]} 23...
Bf8 {[%clk 0:00:46]} 24. Rd1 {[%clk 0:00:37.9]} 24... Qa5 {[%clk 0:00:35.6]} 0-1

[Event "*** Titled Tuesday Blitz"]
[Site "Chess.com"]
[Date "2019.06.04"]
[Round "3"]
[White "Warre"]
[Black "Astaneh"]
[Result "0-1"]
[WhiteElo "2360"]
[BlackElo "2573"]
[TimeControl "180+2"]
[EndTime "13:35:27 PDT"]
[Termination "Astaneh won by resignation"]

1. d4 {[%clk 0:03:01.9]} 1... Nf6 {[%clk 0:03:00.2]} 2. c4 {[%clk 0:03:03.1]}
2... e6 {[%clk 0:03:01.2]} 3. Nf3 {[%clk 0:03:04]} 3... b6 {[%clk 0:03:01.3]} 4.
g3 {[%clk 0:03:05.1]} 4... Bb7 {[%clk 0:03:02.6]} 5. Bg2 {[%clk 0:03:06.1]} 5...
Be7 {[%clk 0:03:03.7]} 6. O-O {[%clk 0:03:07.1]} 6... O-O {[%clk 0:03:05.3]} 7.
Re1 {[%clk 0:03:07.9]} 7... Ne4 {[%clk 0:03:06.1]} 8. Qc2 {[%clk 0:03:04.3]}
8... f5 {[%clk 0:03:05.9]} 9. Nc3 {[%clk 0:03:05.4]} 9... Nxc3 {[%clk
0:02:58.5]} 10. Qxc3 {[%clk 0:03:04.9]} 10... d6 {[%clk 0:02:51.1]} 11. b3
{[%clk 0:03:03.6]} 11... Nd7 {[%clk 0:02:51.7]} 12. Bb2 {[%clk 0:02:58.2]} 12...
Nf6 {[%clk 0:02:43.8]} 13. d5 {[%clk 0:02:12.1]} 13... e5 {[%clk 0:02:42.2]} 14.
Ng5 {[%clk 0:02:12.3]} 14... Nxd5 {[%clk 0:02:37.2]} 15. Bxd5+ {[%clk
0:02:00.4]} 15... Bxd5 {[%clk 0:02:37.5]} 16. Nxh7 {[%clk 0:01:57]} 16... Kxh7
{[%clk 0:02:09.5]} 17. cxd5 {[%clk 0:01:54.1]} 17... Rf7 {[%clk 0:02:09.4]} 18.
Rac1 {[%clk 0:01:51.9]} 18... Bg5 {[%clk 0:02:06.8]} 19. e3 {[%clk 0:01:52.4]}
19... f4 {[%clk 0:01:51.5]} 20. Qd3+ {[%clk 0:01:50.3]} 20... Kg8 {[%clk
0:01:46.8]} 21. exf4 {[%clk 0:01:51.2]} 21... exf4 {[%clk 0:01:47.4]} 22. Rc4
{[%clk 0:01:47.8]} 22... Qd7 {[%clk 0:01:46.3]} 23. Rce4 {[%clk 0:01:47.6]}
23... Raf8 {[%clk 0:01:46.6]} 24. R1e2 {[%clk 0:01:28.1]} 24... Qh3 {[%clk
0:01:32.4]} 25. Rc2 {[%clk 0:01:14.8]} 25... fxg3 {[%clk 0:01:00.1]} 26. hxg3
{[%clk 0:01:10.3]} 26... Bf6 {[%clk 0:00:54.9]} 27. Bxf6 {[%clk 0:01:08.5]}
27... Rxf6 {[%clk 0:00:53.6]} 28. Rh4 {[%clk 0:01:08.5]} 28... Qf5 {[%clk
0:00:43]} 29. Qxf5 {[%clk 0:01:05.8]} 29... Rxf5 {[%clk 0:00:44.9]} 30. Rxc7
{[%clk 0:01:07]} 30... Rxf2 {[%clk 0:00:45.8]} 31. Rxa7 {[%clk 0:00:59.5]} 31...
R2f5 {[%clk 0:00:35.2]} 32. Rg4 {[%clk 0:00:56.6]} 32... Rf1+ {[%clk 0:00:35.2]}
0-1

[Event "*** Titled Tuesday Blitz"]
[Site "Chess.com"]
[Date "2019.06.04"]
[Round "3"]
[White "TheRigos"]
[Black "Krupko_Alexey"]
[Result "1-0"]
[WhiteElo "2413"]
[BlackElo "2293"]
[TimeControl "180+2"]
[EndTime "13:35:27 PDT"]
[Termination "TheRigos won by resignation"]

1. e4 {[%clk 0:02:35.2]} 1... e6 {[%clk 0:02:57]} 2. d4 {[%clk 0:02:35.4]} 2...
d5 {[%clk 0:02:58.5]} 3. Nd2 {[%clk 0:02:33.9]} 3... Nf6 {[%clk 0:02:59]} 4. e5
{[%clk 0:02:34.2]} 4... Nfd7 {[%clk 0:02:59.7]} 5. Bd3 {[%clk 0:02:31.6]} 5...
c5 {[%clk 0:03:00.8]} 6. c3 {[%clk 0:02:33.5]} 6... Nc6 {[%clk 0:03:01.8]} 7.
Ne2 {[%clk 0:02:34.4]} 7... cxd4 {[%clk 0:03:03.2]} 8. cxd4 {[%clk 0:02:36.3]}
8... f6 {[%clk 0:03:04.7]} 9. exf6 {[%clk 0:02:37.1]} 9... Qxf6 {[%clk
0:03:06.6]} 10. Nf3 {[%clk 0:02:35.4]} 10... h6 {[%clk 0:03:07]} 11. O-O {[%clk
0:02:35.6]} 11... Bd6 {[%clk 0:03:07.5]} 12. Nc3 {[%clk 0:02:29.1]} 12... O-O
{[%clk 0:02:59]} 13. Re1 {[%clk 0:02:25.9]} 13... Rf7 {[%clk 0:02:56.6]} 14. Bc2
{[%clk 0:02:09.2]} 14... Nf8 {[%clk 0:02:56.1]} 15. a3 {[%clk 0:02:05.7]} 15...
a6 {[%clk 0:02:49.4]} 16. Na4 {[%clk 0:02:03.5]} 16... b5 {[%clk 0:02:29.5]} 17.
Nc3 {[%clk 0:01:37.5]} 17... Bd7 {[%clk 0:02:15.2]} 18. b4 {[%clk 0:01:35.3]}
18... Rc8 {[%clk 0:02:10.5]} 19. Bb2 {[%clk 0:01:32.8]} 19... Be8 {[%clk
0:02:04.9]} 20. Ne2 {[%clk 0:01:27.9]} 20... Nd7 {[%clk 0:02:01.8]} 21. Ng3
{[%clk 0:01:28.5]} 21... Rf8 {[%clk 0:01:53]} 22. Qd3 {[%clk 0:01:27.3]} 22...
g6 {[%clk 0:01:45.9]} 23. Re2 {[%clk 0:01:19.7]} 23... Nb6 {[%clk 0:01:43.9]}
24. Rae1 {[%clk 0:01:18.9]} 24... Nd8 {[%clk 0:01:40.1]} 25. Ne5 {[%clk
0:01:13.4]} 25... Bxe5 {[%clk 0:01:35.7]} 26. dxe5 {[%clk 0:01:12.2]} 26... Qf7
{[%clk 0:01:32.6]} 27. Bd4 {[%clk 0:01:12.7]} 27... Nd7 {[%clk 0:01:27.2]} 28.
h4 {[%clk 0:01:06]} 28... Nc6 {[%clk 0:01:26.2]} 29. Bb2 {[%clk 0:01:02.1]}
29... Qg7 {[%clk 0:01:13.4]} 30. Re3 {[%clk 0:00:52.2]} 30... Nb6 {[%clk
0:01:07.4]} 31. Nh5 {[%clk 0:00:51.8]} 31... gxh5 {[%clk 0:00:42.8]} 32. Rg3
{[%clk 0:00:48.8]} 32... Rc7 {[%clk 0:00:40]} 33. Qh7+ {[%clk 0:00:46.2]} 1-0

[Event "*** Titled Tuesday Blitz"]
[Site "Chess.com"]
[Date "2019.06.04"]
[Round "3"]
[White "oogee"]
[Black "Caisachess"]
[Result "1/2-1/2"]
[WhiteElo "2332"]
[BlackElo "2440"]
[TimeControl "180+2"]
[EndTime "13:35:28 PDT"]
[Termination "Game drawn by repetition"]

1. d4 {[%clk 0:02:56.6]} 1... Nf6 {[%clk 0:02:59.8]} 2. c4 {[%clk 0:02:56.9]}
2... e6 {[%clk 0:02:59.4]} 3. g3 {[%clk 0:02:52.8]} 3... d5 {[%clk 0:02:59.8]}
4. Nf3 {[%clk 0:02:53.7]} 4... dxc4 {[%clk 0:03:00]} 5. Bg2 {[%clk 0:02:53.3]}
5... c5 {[%clk 0:02:58.1]} 6. O-O {[%clk 0:02:39.6]} 6... Nc6 {[%clk 0:02:58.5]}
7. dxc5 {[%clk 0:02:33.7]} 7... Qxd1 {[%clk 0:02:58.8]} 8. Rxd1 {[%clk
0:02:33.9]} 8... Bxc5 {[%clk 0:03:00.4]} 9. Nbd2 {[%clk 0:02:17.3]} 9... c3
{[%clk 0:02:57.1]} 10. bxc3 {[%clk 0:02:17.6]} 10... O-O {[%clk 0:02:58.1]} 11.
Nb3 {[%clk 0:02:02.8]} 11... Be7 {[%clk 0:02:58.2]} 12. c4 {[%clk 0:01:59.4]}
12... Bd7 {[%clk 0:02:31.7]} 13. Bf4 {[%clk 0:01:46.8]} 13... Rac8 {[%clk
0:02:15.5]} 14. Rab1 {[%clk 0:01:28.3]} 14... b6 {[%clk 0:02:10.2]} 15. Bd6
{[%clk 0:01:21.3]} 15... Bxd6 {[%clk 0:02:01.9]} 16. Rxd6 {[%clk 0:01:22.3]}
16... Rfd8 {[%clk 0:02:03.6]} 17. Rbd1 {[%clk 0:01:22.6]} 17... Be8 {[%clk
0:01:57.1]} 18. c5 {[%clk 0:01:11.5]} 18... bxc5 {[%clk 0:01:54.3]} 19. Nxc5
{[%clk 0:01:10.2]} 19... Kf8 {[%clk 0:01:55.6]} 20. Ng5 {[%clk 0:01:05.4]} 20...
Ke7 {[%clk 0:01:50.7]} 21. R6d2 {[%clk 0:00:39.4]} 21... h6 {[%clk 0:01:46.4]}
22. Nge4 {[%clk 0:00:39.9]} 22... Nxe4 {[%clk 0:01:39.6]} 23. Nxe4 {[%clk
0:00:39.8]} 23... Rxd2 {[%clk 0:01:40.2]} 24. Rxd2 {[%clk 0:00:39.3]} 24... Rd8
{[%clk 0:01:41.6]} 25. Bf3 {[%clk 0:00:38.2]} 25... Rxd2 {[%clk 0:01:42]} 26.
Nxd2 {[%clk 0:00:39.4]} 26... Nd4 {[%clk 0:01:43.6]} 27. e3 {[%clk 0:00:37.5]}
27... Nxf3+ {[%clk 0:01:43.5]} 28. Nxf3 {[%clk 0:00:39]} 28... Bc6 {[%clk
0:01:45.1]} 29. Nd4 {[%clk 0:00:39.7]} 29... Bd5 {[%clk 0:01:46.3]} 30. a3
{[%clk 0:00:41]} 30... a5 {[%clk 0:01:34.6]} 31. Kf1 {[%clk 0:00:40]} 31... Kd6
{[%clk 0:01:35.9]} 32. Ke2 {[%clk 0:00:41.2]} 32... Kc5 {[%clk 0:01:37.1]} 33.
Kd3 {[%clk 0:00:41.8]} 33... Bc4+ {[%clk 0:01:37.6]} 34. Kc3 {[%clk 0:00:42.9]}
34... Bd5 {[%clk 0:01:39]} 35. f3 {[%clk 0:00:43.9]} 35... Bb7 {[%clk
0:01:26.5]} 36. e4 {[%clk 0:00:44.2]} 36... g5 {[%clk 0:01:21.5]} 37. Nb3+
{[%clk 0:00:43.5]} 37... Kb5 {[%clk 0:01:19.7]} 38. Nd4+ {[%clk 0:00:43]} 38...
Kc5 {[%clk 0:01:20.8]} 39. Nb3+ {[%clk 0:00:43.6]} 39... Kb5 {[%clk 0:01:22.2]}
40. Nd4+ {[%clk 0:00:45.1]} 40... Kc5 {[%clk 0:01:23.6]} 1/2-1/2